bitfinex/quotes_BTCUSD_20250822
["timestamp","ask_amount","ask_price","bid_price","bid_amount"]
[1755832324931,0.86088851,113630.0,113610.0,0.029475]
[1755832325274,0.00825151,113630.0,113610.0,0.029475]
[1755832325452,0.50825151,113630.0,113610.0,0.029475]
[1755832327931,0.50825151,113630.0,113620.0,0.003]
[1755832328154,0.64876,113640.0,113620.0,0.00501]
[1755832328363,0.54515204,113640.0,113620.0,0.00501]
[1755832328601,0.352637,113630.0,113620.0,0.00501]
[1755832328727,0.36088649,113630.0,113620.0,0.00501]
[1755832328953,0.00824949,113630.0,113620.0,0.00501]
[1755832329167,0.68154637,113640.0,113620.0,0.00501]
[1755832329346,0.67078963,113640.0,113620.0,0.00501]
[1755832329550,0.67079007,113640.0,113630.0,0.003]
[1755832329752,0.52203007,113640.0,113630.0,0.003]
[1755832330014,0.17079,113640.0,113630.0,0.00501]
[1755832330223,0.67079,113640.0,113630.0,0.00501]
[1755832330429,0.874667,113640.0,113630.0,0.00501]
[1755832330602,0.02303,113640.0,113630.0,0.00501]
[1755832330806,0.02303,113640.0,113630.0,0.00457303]
[1755832330807,0.02203,113640.0,113630.0,0.00457303]
[1755832331010,0.26377994,113640.0,113630.0,0.00457303]
[1755832331212,0.26477994,113640.0,113630.0,0.00457303]
[1755832331414,0.26577994,113640.0,113630.0,0.00457303]
[1755832331955,0.26477994,113640.0,113630.0,0.00457303]
[1755832332458,0.26577994,113640.0,113630.0,0.00457303]
[1755832335329,0.26377994,113640.0,113630.0,0.00457303]
[1755832335532,0.01377994,113640.0,113630.0,0.00457303]
[1755832335733,0.1488,113650.0,113630.0,0.00457303]
[1755832335937,0.14888,113650.0,113640.0,0.003]
[1755832336306,0.14888,113650.0,113640.0,0.00501]
[1755832336906,0.39888,113650.0,113640.0,0.00501]
[1755832337123,0.39896467,113650.0,113640.0,0.00501]
[1755832337506,0.39996467,113650.0,113640.0,0.00501]
[1755832337708,0.39896467,113650.0,113640.0,0.00501]
[1755832338120,0.39996467,113650.0,113640.0,0.00501]
[1755832339123,0.41474212,113650.0,113640.0,0.00501]
[1755832339539,0.16374212,113650.0,113640.0,0.00501]
[1755832339954,0.01486212,113650.0,113640.0,0.07544804]
[1755832340960,0.01386212,113650.0,113640.0,0.10191504]
[1755832341573,0.01386212,113650.0,113640.0,0.10411496]
[1755832341773,0.01386212,113650.0,113640.0,0.10491504]
[1755832343210,0.01386212,113650.0,113640.0,0.10691504]
[1755832346006,0.01386212,113650.0,113640.0,0.11131488]
[1755832348479,0.01386212,113650.0,113640.0,0.10691504]
[1755832348709,0.01386212,113650.0,113640.0,0.11131488]
[1755832350893,0.01386212,113650.0,113640.0,0.10691504]
[1755832351112,0.01386212,113650.0,113640.0,0.37801488]
[1755832351280,0.01386212,113650.0,113640.0,0.37361504]
[1755832354304,0.01386212,113650.0,113640.0,0.10691504]
[1755832354506,0.01386212,113650.0,113640.0,0.11131488]
[1755832356383,0.01386212,113650.0,113640.0,0.28730924]
[1755832356681,0.01386212,113650.0,113640.0,0.2829094]
[1755832357248,0.01386212,113650.0,113640.0,0.10691504]
[1755832357485,0.01386212,113650.0,113640.0,0.11131488]
[1755832357687,0.01386212,113650.0,113640.0,0.28730924]
[1755832357952,0.01386212,113650.0,113640.0,0.2829094]
[1755832358910,0.01386212,113650.0,113640.0,0.38724317]
[1755832359118,0.01386212,113650.0,113640.0,0.72280135]
[1755832359312,8.467e-05,113650.0,113640.0,0.74780135]
[1755832359889,8.467e-05,113650.0,113640.0,0.74580135]
[1755832360734,8.467e-05,113650.0,113640.0,0.74280135]
[1755832361144,8.467e-05,113650.0,113640.0,0.74780135]
[1755832361515,8.467e-05,113650.0,113640.0,6.13780135]
[1755832362115,8.467e-05,113650.0,113640.0,6.13580135]
[1755832362581,8.467e-05,113650.0,113640.0,6.13280135]
[1755832362813,8.467e-05,113650.0,113640.0,6.16303663]
[1755832363019,8.467e-05,113650.0,113640.0,6.16603663]
[1755832363443,8.467e-05,113650.0,113640.0,6.72679481]
[1755832363659,8.467e-05,113650.0,113640.0,6.77679481]
[1755832363873,8.467e-05,113650.0,113640.0,6.78179481]
[1755832364570,8.467e-05,113650.0,113640.0,6.77879481]
[1755832364824,8.467e-05,113650.0,113640.0,6.93147481]
[1755832365432,8.467e-05,113650.0,113640.0,7.02434481]
[1755832365633,8.467e-05,113650.0,113640.0,6.87566481]
[1755832365835,8.467e-05,113650.0,113640.0,7.02430481]
[1755832368404,8.467e-05,113650.0,113640.0,4.80786141]
[1755832368606,8.467e-05,113650.0,113640.0,3.99023759]
[1755832368808,8.467e-05,113650.0,113640.0,3.58105159]
[1755832369016,8.467e-05,113650.0,113640.0,3.70524277]
[1755832369597,8.467e-05,113650.0,113640.0,3.27108677]
[1755832369798,8.467e-05,113650.0,113640.0,3.06037777]
[1755832369998,8.467e-05,113650.0,113640.0,2.81602277]
[1755832370345,8.467e-05,113650.0,113640.0,1.95652759]
[1755832370560,8.467e-05,113650.0,113640.0,1.37679859]
[1755832370974,8.467e-05,113650.0,113640.0,1.52531859]
[1755832373610,0.01385642,113650.0,113640.0,1.52531859]
[1755832375035,0.01385642,113650.0,113640.0,1.51681859]
[1755832375796,8.467e-05,113650.0,113640.0,1.51681859]
[1755832378490,8.467e-05,113650.0,113640.0,1.96411859]
[1755832380707,8.467e-05,113650.0,113640.0,1.81559859]
[1755832380921,8.467e-05,113650.0,113640.0,1.96399859]
[1755832382904,0.06768,113720.0,113670.0,0.00879739]
[1755832383123,0.06768,113720.0,113680.0,0.15059915]
[1755832383124,8.466e-05,113710.0,113680.0,0.15059915]
[1755832383324,0.02209315,113710.0,113680.0,0.00219915]
[1755832383503,0.02209315,113710.0,113690.0,0.1484]
[1755832384304,0.02209442,113710.0,113690.0,0.1484]
[1755832384514,0.05292715,113710.0,113690.0,0.1484]
[1755832384872,0.05292864,113710.0,113690.0,0.1484]
[1755832385052,0.05692864,113710.0,113690.0,0.1484]
[1755832385288,0.05292864,113710.0,113690.0,0.1484]
[1755832385717,0.05692864,113710.0,113690.0,0.1484]
[1755832386414,0.05692864,113710.0,113690.0,0.14824963]
[1755832387278,0.05692864,113710.0,113680.0,0.36359504]
[1755832387477,0.04315802,113710.0,113690.0,0.1484]
[1755832388135,0.04315802,113710.0,113680.0,0.36359504]
[1755832388343,0.04315802,113710.0,113690.0,0.1484]
[1755832390591,0.05694204,113710.0,113690.0,0.1484]
[1755832392049,0.05694204,113710.0,113680.0,0.51199504]
[1755832392462,0.05694204,113710.0,113680.0,0.51517504]
[1755832393530,0.05294229,113710.0,113680.0,0.51517504]
[1755832393888,0.05694229,113710.0,113680.0,0.51517504]
[1755832394166,0.05694237,113710.0,113680.0,0.51517504]
[1755832394397,0.05694301,113710.0,113690.0,0.00318]
[1755832395256,0.05694301,113710.0,113680.0,0.51517504]
[1755832395473,0.05694301,113710.0,113680.0,0.36677504]
[1755832395702,0.05694301,113710.0,113690.0,0.1488]
[1755832395910,0.04317238,113710.0,113690.0,0.1488]
[1755832396743,0.04317377,113710.0,113690.0,0.1488]
[1755832396956,0.03917377,113710.0,113690.0,0.1488]
[1755832397370,0.04317377,113710.0,113690.0,0.1488]
[1755832398768,0.04317377,113710.0,113690.0,0.15201]
[1755832398975,0.05694439,113710.0,113690.0,0.15201]
[1755832402662,0.05694439,113710.0,113690.0,0.178466]
[1755832402871,0.04868801,113710.0,113690.0,0.178466]
[1755832403089,0.05694632,113710.0,113690.0,0.178466]
[1755832403584,0.05694628,113710.0,113690.0,0.178466]
[1755832403986,0.05694628,113710.0,113700.0,0.00321]
[1755832404950,0.05694628,113710.0,113690.0,0.178466]
[1755832405193,0.30294628,113710.0,113690.0,0.178466]
[1755832405448,0.30694628,113710.0,113690.0,0.029666]
[1755832405704,0.30694628,113710.0,113700.0,3e-07]
[1755832406397,0.29868801,113710.0,113700.0,3e-07]
[1755832406765,0.29468801,113710.0,113700.0,3e-07]
[1755832407175,0.29868801,113710.0,113700.0,0.0032103]
[1755832407387,0.29468801,113710.0,113700.0,0.0032103]
[1755832407819,0.29868801,113710.0,113700.0,0.0032103]
[1755832408402,0.29868801,113710.0,113700.0,3e-07]
[1755832409066,0.3069468,113710.0,113700.0,3e-07]
[1755832411460,0.3060668,113710.0,113700.0,3e-07]
[1755832412062,0.29780801,113710.0,113700.0,3e-07]
[1755832412280,0.30606698,113710.0,113700.0,3e-07]
[1755832412692,0.30606691,113710.0,113700.0,3e-07]
[1755832413277,0.30606691,113710.0,113700.0,0.0032103]
[1755832415181,0.12431248,113710.0,113700.0,0.0032103]
[1755832415360,0.14989489,113710.0,113700.0,0.0032103]
[1755832415572,0.16366544,113710.0,113700.0,0.0032103]
[1755832416396,0.05161186,113710.0,113700.0,0.0032103]
[1755832416603,0.04761186,113710.0,113700.0,0.0032103]
[1755832417027,0.05161186,113710.0,113700.0,0.0032103]
[1755832417434,0.04761186,113710.0,113700.0,0.0032103]
[1755832417794,0.04961186,113710.0,113700.0,0.0032103]
[1755832418150,0.04135296,113710.0,113700.0,0.0032103]
[1755832418326,0.04961244,113710.0,113700.0,0.0032103]
[1755832421305,0.04135296,113710.0,113700.0,0.0032103]
[1755832421443,0.04960777,113710.0,113700.0,0.0032103]
[1755832422192,0.04960778,113710.0,113700.0,0.0032103]
[1755832426228,0.04960778,113710.0,113700.0,3e-07]
[1755832427563,0.04960729,113710.0,113700.0,3e-07]
[1755832427968,0.19804729,113710.0,113690.0,0.0259664]
[1755832428133,0.19804729,113710.0,113680.0,0.34026804]
[1755832428328,0.18427674,113710.0,113680.0,0.36672704]
[1755832428906,0.18427674,113710.0,113690.0,0.00313]
[1755832429811,0.18227674,113710.0,113690.0,0.00313]
[1755832430221,0.18427674,113710.0,113690.0,0.00313]
[1755832430420,0.18227674,113710.0,113690.0,0.00313]
[1755832430647,0.17402241,113710.0,113690.0,0.00313]
[1755832430772,0.18427158,113710.0,113690.0,0.00313]
[1755832431315,0.19804298,113710.0,113690.0,0.00313]
[1755832433757,0.19804082,113710.0,113690.0,0.00313]
[1755832439959,0.19803898,113710.0,113690.0,0.00313]
[1755832440347,0.19803898,113710.0,113700.0,0.00196]
[1755832440765,0.19803898,113710.0,113700.0,0.00509]
[1755832442266,0.19803898,113710.0,113700.0,0.00559]
[1755832442465,0.19803898,113710.0,113700.0,0.00363]
[1755832442782,0.19603898,113710.0,113700.0,0.00363]
[1755832442986,0.19803898,113710.0,113700.0,0.00363]
[1755832444773,0.19803898,113710.0,113700.0,0.0005]
[1755832445170,0.19803898,113710.0,113700.0,0.00559]
[1755832448054,0.18979381,113710.0,113700.0,0.00559]
[1755832448257,0.19803967,113710.0,113700.0,0.00559]
[1755832449010,0.19803967,113710.0,113700.0,0.00363]
[1755832449228,0.19803967,113710.0,113700.0,0.0005]
[1755832449485,0.19803967,113710.0,113700.0,0.00363]
[1755832452086,0.19803967,113710.0,113700.0,0.0005]
[1755832452087,0.69803967,113710.0,113700.0,0.0005]
[1755832452284,0.89904267,113710.0,113700.0,0.0005]
[1755832452463,0.19803967,113710.0,113680.0,0.09689704]
[1755832452668,0.19803967,113710.0,113680.0,0.10002704]
[1755832452669,0.201003,113700.0,113680.0,0.10002704]
[1755832452878,0.1484,113690.0,113680.0,0.10002704]
[1755832453495,0.16217299,113690.0,113680.0,0.10198704]
[1755832453721,0.16217299,113690.0,113680.0,0.07552804]
[1755832454666,0.16417299,113690.0,113680.0,0.07552804]
[1755832456733,0.1504,113690.0,113680.0,0.07552804]
[1755832459200,0.002,113690.0,113680.0,0.07552804]
[1755832460042,0.01577253,113690.0,113680.0,0.07552804]
[1755832462116,0.01577253,113690.0,113680.0,0.00313]
[1755832462929,0.01577253,113690.0,113670.0,0.00307]
[1755832463256,0.01577253,113690.0,113680.0,0.00205]
[1755832463714,0.01577253,113690.0,113680.0,0.00512]
[1755832463956,0.01377253,113690.0,113680.0,0.00512]
[1755832464165,0.01477253,113690.0,113680.0,0.00512]
[1755832464661,0.01377253,113690.0,113680.0,0.00512]
[1755832466117,0.01477253,113690.0,113680.0,0.00512]
[1755832468543,0.01477253,113690.0,113680.0,0.00307]
[1755832469936,0.01477253,113690.0,113680.0,0.00512]
[1755832471963,0.01477253,113690.0,113670.0,0.00307]
[1755832472189,0.51477253,113690.0,113670.0,0.00307]
[1755832472402,0.71577553,113690.0,113670.0,0.00307]
[1755832472647,0.02301102,113690.0,113670.0,0.00307]
[1755832472863,0.51477253,113690.0,113670.0,0.00307]
[1755832473067,0.724014,113690.0,113670.0,0.00307]
[1755832473294,0.022011,113690.0,113670.0,0.00307]
[1755832473491,0.523011,113690.0,113670.0,0.00307]
[1755832473703,0.724014,113690.0,113670.0,0.00307]
[1755832473912,0.023011,113690.0,113670.0,0.00307]
[1755832474161,0.523011,113690.0,113670.0,0.00307]
[1755832474383,0.1484,113680.0,113670.0,0.00307]
[1755832474643,0.1484,113680.0,113670.0,0.00512]
[1755832475963,0.1484,113680.0,113670.0,0.00307]
[1755832476173,0.1484,113680.0,113660.0,0.07350804]
[1755832476591,0.1484,113680.0,113670.0,0.00307]
[1755832478097,0.1484,113680.0,113660.0,0.07350804]
[1755832478992,0.200434,113670.0,113660.0,0.07350804]
[1755832479418,0.200434,113670.0,113660.0,0.00307]
[1755832480256,0.200434,113670.0,113660.0,0.00315466]
[1755832480424,0.201434,113670.0,113660.0,0.00315466]
[1755832480640,0.001,113670.0,113660.0,0.00315466]
[1755832482867,0.501,113670.0,113660.0,0.00315466]
[1755832483073,0.701434,113670.0,113660.0,0.00315466]
[1755832483282,0.001,113670.0,113660.0,0.00315466]
[1755832483493,0.501,113670.0,113660.0,0.00315466]
[1755832483708,0.5,113660.0,113650.0,0.00357]
[1755832483922,0.350794,113660.0,113640.0,0.07043804]
[1755832484133,0.15036,113660.0,113640.0,0.07043804]
[1755832484343,0.65036,113660.0,113640.0,0.07043804]
[1755832484559,0.36457096,113660.0,113640.0,0.07043804]
[1755832484859,0.200434,113650.0,113640.0,0.07043804]
[1755832485072,0.202424,113650.0,113640.0,0.07248804]
[1755832485284,0.00199,113650.0,113640.0,0.07248804]
[1755832485915,0.00199,113650.0,113640.0,0.07555804]
[1755832486132,0.00199,113650.0,113620.0,0.09690904]
[1755832486340,0.00515,113650.0,113620.0,0.09699371]
[1755832486764,0.00515,113650.0,113640.0,0.00205]
[1755832486976,0.00515,113650.0,113620.0,0.09699371]
[1755832488227,0.00515,113650.0,113630.0,0.00301]
[1755832489290,0.00615,113650.0,113630.0,0.00301]
[1755832489732,0.02092877,113650.0,113630.0,0.00301]
[1755832489967,0.03785765,113650.0,113630.0,0.00301]
[1755832490402,0.00304,113640.0,113620.0,0.07353271]
[1755832490810,0.005,113640.0,113630.0,0.00216]
[1755832491041,0.005,113640.0,113620.0,0.07353271]
[1755832491225,0.705434,113640.0,113620.0,0.07353271]
[1755832491481,0.6534,113640.0,113620.0,0.07353271]
[1755832491695,0.1534,113640.0,113620.0,0.07353271]
[1755832491909,0.1534,113640.0,113630.0,0.00216]
[1755832492356,0.1534,113640.0,113620.0,0.07353271]
[1755832494592,0.6534,113640.0,113620.0,0.07353271]
[1755832494877,0.853834,113640.0,113620.0,0.07353271]
[1755832495092,0.853834,113640.0,113620.0,0.00309467]
[1755832495093,0.200434,113630.0,113620.0,0.00309467]
[1755832495297,0.202394,113630.0,113620.0,0.00525467]
[1755832495682,0.202394,113630.0,113620.0,0.00224467]
[1755832495683,0.00196,113630.0,113620.0,0.00224467]
[1755832495890,0.01573975,113630.0,113620.0,0.00224467]
[1755832496266,0.01573975,113630.0,113620.0,0.00525467]
[1755832496774,0.01573975,113630.0,113620.0,0.00224467]
[1755832496987,0.05179739,113630.0,113620.0,0.00224467]
[1755832497183,0.55179739,113630.0,113620.0,0.00525467]
[1755832497424,0.75223139,113630.0,113620.0,0.00525467]
[1755832497646,0.05179739,113630.0,113620.0,0.00224467]
[1755832497884,0.55179739,113630.0,113620.0,0.00324467]
[1755832498004,0.75527139,113630.0,113620.0,0.00108467]
[1755832498189,0.05483739,113630.0,113620.0,0.00108467]
[1755832498402,0.55483739,113630.0,113620.0,0.00108467]
[1755832498632,0.75527139,113630.0,113620.0,0.00108467]
[1755832498845,0.05483739,113630.0,113620.0,0.00108467]
[1755832499067,0.55483739,113630.0,113620.0,0.00108467]
[1755832499269,0.74149164,113630.0,113620.0,0.00108467]
[1755832499467,0.04105764,113630.0,113620.0,0.00108467]
[1755832499673,0.54105764,113630.0,113620.0,0.00108467]
[1755832499876,0.74149164,113630.0,113620.0,0.00108467]
[1755832500087,0.04105764,113630.0,113620.0,0.00108467]
[1755832500300,0.54105764,113630.0,113620.0,0.00324467]
[1755832500519,0.74149164,113630.0,113620.0,0.00324467]
[1755832500725,0.04105764,113630.0,113620.0,0.00324467]
[1755832500929,0.53801764,113630.0,113620.0,0.00324467]
[1755832501845,0.54105764,113630.0,113620.0,0.00108467]
[1755832502400,0.55483784,113630.0,113620.0,0.00108467]
[1755832510218,0.58981056,113630.0,113620.0,0.00108467]
[1755832510427,0.55483784,113630.0,113600.0,0.07394804]
[1755832510631,0.14836,113620.0,113600.0,0.07442933]
[1755832510910,0.14836,113620.0,113600.0,0.07658933]
[1755832510911,0.00196,113610.0,113600.0,0.07658933]
[1755832511125,0.1514,113620.0,113600.0,0.07658933]
[1755832511780,0.16518073,113620.0,113600.0,0.07658933]
[1755832512639,0.005,113610.0,113600.0,0.00314129]
[1755832512856,0.005,113610.0,113600.0,0.00098129]
[1755832514326,0.006,113610.0,113600.0,0.00098129]
[1755832516168,0.06772,113620.0,113600.0,0.00098129]
[1755832516371,0.215887,113610.0,113600.0,0.00098129]
[1755832516608,0.00167,113610.0,113600.0,0.00098129]
[1755832517200,0.15003,113610.0,113600.0,0.00098129]
[1755832517573,0.65003,113610.0,113600.0,0.00098129]
[1755832517781,0.850464,113610.0,113600.0,0.00098129]
[1755832518000,0.15003,113610.0,113600.0,0.00098129]
[1755832518211,0.65003,113610.0,113600.0,0.00098129]
[1755832518425,0.850464,113610.0,113600.0,0.00098129]
[1755832518647,0.15003,113610.0,113600.0,0.00098129]
[1755832518856,0.66648787,113610.0,113600.0,0.00098129]
[1755832519073,0.86692187,113610.0,113600.0,0.00098129]
[1755832519285,0.3813216,113610.0,113600.0,0.00098129]
[1755832520346,0.3951053,113610.0,113600.0,0.00098129]
[1755832521358,0.38070468,113610.0,113600.0,0.00098129]
[1755832521573,0.39510453,113610.0,113600.0,0.00098129]
[1755832521890,0.39509954,113610.0,113600.0,0.00098129]
[1755832522306,0.64509954,113610.0,113600.0,0.00098129]
[1755832522499,0.64609924,113610.0,113600.0,0.00098129]
[1755832522625,0.64909924,113610.0,113600.0,0.00098129]
[1755832522878,0.64809924,113610.0,113600.0,0.00098129]
[1755832523170,0.74077868,113610.0,113600.0,0.00098129]
[1755832523386,0.66654826,113610.0,113600.0,0.00098129]
[1755832523582,0.69303426,113610.0,113600.0,0.00098129]
[1755832523788,0.69286702,113610.0,113600.0,0.00098129]
[1755832524625,0.69286319,113610.0,113600.0,0.00098129]
[1755832528069,0.71180059,113610.0,113600.0,0.00098129]
[1755832530453,0.56344059,113610.0,113600.0,0.00098129]
[1755832530661,0.71184059,113610.0,113600.0,0.00098129]
[1755832530870,0.70564694,113610.0,113600.0,0.00098129]
[1755832531084,0.71181045,113610.0,113600.0,0.00098129]
[1755832531294,0.70359126,113610.0,113600.0,0.00098129]
[1755832531505,0.71180885,113610.0,113600.0,0.00098129]
[1755832534024,0.71180834,113610.0,113600.0,0.00098129]
[1755832540215,0.71184103,113610.0,113600.0,0.00098129]
[1755832540677,0.70361486,113610.0,113600.0,0.00098129]
[1755832540836,0.71184098,113610.0,113600.0,0.00098129]
[1755832541389,0.79871063,113610.0,113600.0,0.00098129]
[1755832541860,1.28565843,113610.0,113600.0,0.00098129]
[1755832542070,1.44791557,113610.0,113600.0,0.00098129]
[1755832542278,1.47949939,113610.0,113600.0,0.00098129]
[1755832543399,1.47951367,113610.0,113600.0,0.00098129]
[1755832543549,1.43980985,113610.0,113600.0,0.00098129]
[1755832543755,1.45359456,113610.0,113600.0,0.00098129]
[1755832544188,1.36672491,113610.0,113600.0,0.00098129]
[1755832544960,0.88125711,113610.0,113600.0,0.00098129]
[1755832545172,0.19350666,113600.0,113580.0,0.00316]
[1755832545351,0.911457,113590.0,113580.0,0.00330442]
[1755832545640,0.46125678,113590.0,113580.0,0.00526442]
[1755832546034,0.46321678,113590.0,113550.0,0.07043804]
[1755832546247,0.195297,113580.0,113550.0,0.09707251]
[1755832546453,0.30390602,113590.0,113550.0,0.09707251]
[1755832546454,0.843697,113570.0,113550.0,0.09707251]
[1755832546698,0.1484,113560.0,113550.0,0.09707251]
[1755832546906,0.1484,113560.0,113550.0,0.09909251]
[1755832547750,0.1484,113560.0,113550.0,0.00216447]
[1755832547983,0.1484,113560.0,113550.0,0.00526447]
[1755832549029,0.1484,113560.0,113550.0,0.01126447]
[1755832549252,0.1484,113560.0,113550.0,0.01176447]
[1755832550187,0.1484,113560.0,113550.0,0.01476447]
[1755832552004,0.16218788,113560.0,113550.0,0.01476447]
[1755832553601,0.1484,113560.0,113550.0,0.01476447]
[1755832554699,0.1484,113570.0,113550.0,0.01476447]
[1755832555134,0.1484,113570.0,113560.0,0.0031]
[1755832555552,0.1484,113570.0,113560.0,0.00512]
[1755832558313,0.1484,113570.0,113560.0,0.00712]
[1755832558524,0.1484,113570.0,113560.0,0.01012]
[1755832560449,0.09425,113590.0,113560.0,0.01012]
[1755832560760,0.10317076,113590.0,113560.0,0.01012]
[1755832560845,0.06776,113590.0,113570.0,0.0031]
[1755832561079,0.1484,113580.0,113570.0,0.0031]
[1755832561310,0.1484,113580.0,113570.0,0.00512]
[1755832562482,0.1484,113580.0,113570.0,0.00712]
[1755832563819,0.16218607,113580.0,113570.0,0.00712]
[1755832564874,0.01378607,113580.0,113570.0,0.00712]
[1755832565088,0.16214607,113580.0,113570.0,0.00712]
[1755832565520,0.16214607,113580.0,113570.0,0.033606]
[1755832572509,0.01378607,113580.0,113570.0,0.033606]
[1755832572721,0.16214607,113580.0,113570.0,0.033606]
[1755832573339,0.01378607,113580.0,113570.0,0.033606]
[1755832573571,0.16214607,113580.0,113570.0,0.033606]
[1755832574836,0.16214607,113580.0,113570.0,0.03580728]
[1755832575459,0.01378607,113580.0,113570.0,0.03580728]
[1755832575676,0.01378607,113580.0,113570.0,0.03800856]
[1755832575820,0.01378607,113580.0,113570.0,0.1084466]
[1755832576075,0.01378607,113580.0,113570.0,0.10624532]
[1755832576277,0.01378607,113580.0,113570.0,0.10094404]
[1755832576278,0.01582607,113580.0,113570.0,0.10094404]
[1755832578399,0.01582607,113580.0,113570.0,0.09892404]
[1755832578605,0.01905607,113580.0,113570.0,0.09892404]
[1755832580276,0.01582607,113580.0,113570.0,0.09892404]
[1755832580689,0.01905607,113580.0,113570.0,0.09892404]
[1755832581910,0.01582607,113580.0,113570.0,0.09892404]
[1755832582120,0.01378607,113580.0,113570.0,0.10409404]
[1755832584914,0.01592607,113580.0,113570.0,0.10409404]
[1755832585342,0.01592607,113580.0,113570.0,0.10099404]
[1755832586971,0.01592607,113580.0,113570.0,0.10409404]
[1755832590149,0.01378607,113580.0,113570.0,0.10409404]
[1755832591142,0.01592607,113580.0,113570.0,0.10409404]
[1755832593344,0.01592607,113580.0,113570.0,0.10099404]
[1755832594439,0.01915607,113580.0,113570.0,0.09892404]
[1755832595153,0.01592607,113580.0,113570.0,0.10409404]
[1755832596020,0.01915607,113580.0,113570.0,0.09892404]
[1755832596733,0.01592607,113580.0,113570.0,0.10099404]
[1755832596954,0.01592607,113580.0,113570.0,0.10409404]
[1755832597810,0.01378607,113580.0,113570.0,0.10409404]
[1755832598707,0.01378607,113580.0,113570.0,0.10629532]
[1755832599875,0.01378607,113580.0,113570.0,0.10409404]
[1755832600781,0.01592607,113580.0,113570.0,0.10409404]
[1755832601014,0.01378607,113580.0,113570.0,0.10409404]
[1755832602404,0.01549607,113580.0,113570.0,0.10409404]
[1755832603057,0.01549607,113580.0,113570.0,0.10099404]
[1755832604143,0.01549607,113580.0,113570.0,0.10409404]
[1755832604392,0.01378607,113580.0,113570.0,0.10409404]
[1755832605153,0.01378607,113580.0,113570.0,0.10629532]
[1755832610297,0.01378607,113580.0,113570.0,0.10409404]
[1755832611149,0.01590607,113580.0,113570.0,0.10099404]
[1755832611783,0.01590607,113580.0,113570.0,0.10402404]
[1755832613426,0.01378607,113580.0,113570.0,0.10402404]
[1755832614345,0.01894607,113580.0,113570.0,0.09892404]
[1755832616246,0.01590607,113580.0,113570.0,0.10108404]
[1755832616464,0.01590607,113580.0,113570.0,0.09892404]
[1755832617477,0.01590607,113580.0,113570.0,0.10108404]
[1755832617952,0.01590607,113580.0,113570.0,0.10411404]
[1755832619544,0.01590607,113580.0,113570.0,0.10108404]
[1755832620367,0.01590607,113580.0,113570.0,0.10411404]
[1755832625601,0.01378607,113580.0,113570.0,0.10411404]
[1755832626648,0.01570607,113580.0,113570.0,0.10411404]
[1755832627274,0.01570607,113580.0,113570.0,0.07762804]
[1755832627489,0.01570607,113580.0,113570.0,0.10411404]
[1755832629268,0.01873607,113580.0,113570.0,0.028486]
[1755832629478,0.01873607,113580.0,113570.0,0.002]
[1755832629695,0.00495,113580.0,113570.0,0.002]
[1755832630108,0.25495,113580.0,113570.0,0.002]
[1755832630314,0.25495,113580.0,113550.0,0.36730051]
[1755832630556,0.00303,113570.0,113550.0,0.51554051]
[1755832630765,0.00193,113560.0,113550.0,0.51770051]
[1755832630966,0.00193,113560.0,113550.0,0.10276051]
[1755832631679,0.00497,113560.0,113550.0,0.09757051]
[1755832632143,0.00193,113560.0,113550.0,0.09973051]
[1755832632375,0.00193,113560.0,113550.0,0.07324251]
[1755832632798,0.00193,113560.0,113550.0,0.07424251]
[1755832633005,0.00193,113560.0,113550.0,0.07324251]
[1755832633435,0.00193,113560.0,113550.0,0.07624251]
[1755832633638,0.00193,113560.0,113550.0,0.07824251]
[1755832634459,0.03708559,113560.0,113550.0,0.07824251]
[1755832635060,0.04012559,113560.0,113550.0,0.07608251]
[1755832636027,0.03708559,113560.0,113550.0,0.07608251]
[1755832636225,0.03708559,113560.0,113550.0,0.07824251]
[1755832636639,0.03708559,113560.0,113550.0,0.07608251]
[1755832637336,0.03919559,113560.0,113550.0,0.07608251]
[1755832639682,0.03919559,113560.0,113550.0,0.07308251]
[1755832640058,0.53919559,113560.0,113550.0,0.07408251]
[1755832640269,5.53919559,113560.0,113550.0,0.07408251]
[1755832640475,0.03919559,113560.0,113550.0,0.07408251]
[1755832640678,0.53919559,113560.0,113550.0,0.07408251]
[1755832640888,5.53919559,113560.0,113550.0,0.07308251]
[1755832641093,0.03919559,113560.0,113550.0,0.07308251]
[1755832641324,0.53919559,113560.0,113550.0,0.07308251]
[1755832641528,5.53919559,113560.0,113550.0,0.07308251]
[1755832641732,0.03919559,113560.0,113550.0,0.07408251]
[1755832641914,0.53919559,113560.0,113550.0,0.07408251]
[1755832642117,5.53919559,113560.0,113550.0,0.07408251]
[1755832642341,0.03919559,113560.0,113550.0,0.07408251]
[1755832642547,0.53919559,113560.0,113550.0,0.07408251]
[1755832642708,5.53919559,113560.0,113550.0,0.07408251]
[1755832642913,0.28919559,113560.0,113550.0,0.07408251]
[1755832643250,0.28919559,113560.0,113550.0,0.07308251]
[1755832643465,0.28919559,113560.0,113550.0,0.07108251]
[1755832648564,0.43743559,113560.0,113550.0,0.07108251]
[1755832650860,0.43532559,113560.0,113550.0,0.07108251]
[1755832651063,0.43532559,113560.0,113550.0,0.07619251]
[1755832651969,0.43532559,113560.0,113550.0,0.07108251]
[1755832652188,0.43532559,113560.0,113550.0,0.07313251]
[1755832653214,0.43532559,113560.0,113550.0,0.07619251]
[1755832654393,0.43532559,113560.0,113550.0,0.07313251]
[1755832654600,0.43532559,113560.0,113550.0,0.07108251]
[1755832654801,0.43841559,113560.0,113550.0,0.07108251]
[1755832655218,0.23644163,113560.0,113550.0,0.07108251]
[1755832655425,0.23540163,113560.0,113550.0,0.07108251]
[1755832656610,0.23540163,113560.0,113550.0,0.00064447]
[1755832658984,0.26587368,113560.0,113550.0,0.00064447]
[1755832663016,0.26895368,113560.0,113550.0,0.00064447]
[1755832664579,0.26853368,113560.0,113550.0,0.00064447]
[1755832665600,0.26541368,113560.0,113550.0,0.00575447]
[1755832668591,0.26336368,113560.0,113550.0,0.00575447]
[1755832668812,0.26542368,113560.0,113550.0,0.00575447]
[1755832673983,0.26542368,113560.0,113550.0,0.00269447]
[1755832674466,0.26542368,113560.0,113550.0,0.00064447]
[1755832676407,0.06776,113570.0,113550.0,0.00265447]
[1755832676614,5.0,113560.0,113550.0,0.00559447]
[1755832676826,5.01378885,113560.0,113550.0,0.00559447]
[1755832677050,0.06776,113570.0,113550.0,0.00559447]
[1755832677255,5.0,113560.0,113550.0,0.00559447]
[1755832677658,5.1482,113560.0,113550.0,0.00559447]
[1755832677989,0.3982,113560.0,113550.0,0.00559447]
[1755832678432,0.3982,113560.0,113550.0,0.00358447]
[1755832679784,0.3982,113560.0,113550.0,0.00064447]
[1755832679985,0.41198889,113560.0,113550.0,0.00164447]
[1755832680190,0.41198889,113560.0,113550.0,0.00458447]
[1755832680621,0.41198889,113560.0,113550.0,0.00659447]